fUSD/lending_fUSD_20260530
["ID","MTS","AMOUNT","RATE_DAILY","PERIOD"]
[423467173,1780145431000,-1852.42,0.0001087,2]
[423467179,1780145431000,-18009.96,0.00011033,2]
[423467177,1780145431000,-500.0,0.00011032,2]
[423467175,1780145431000,-1200.0,0.00011032,2]
[423467176,1780145431000,-300.0,0.00011032,2]
[423467174,1780145431000,-1433.97,0.00010882,2]
[423467171,1780145431000,-1000.0,0.00010786,2]
[423467190,1780145431000,-1433.97,0.00011698,2]
[423467172,1780145431000,-262.29,0.00010805,2]
[423467170,1780145431000,-173.64,0.00010438,2]
[423467178,1780145431000,-519.97129082,0.00011032,2]
[423467192,1780145431000,-14452.9305311,0.00011731,2]
[423467187,1780145431000,-200.0,0.00011553,2]
[423467191,1780145431000,-7273.0614056,0.00011702,2]
[423467193,1780145431000,-17327.71813606,0.00011741,2]
[423467217,1780145431000,-184.9,0.00012259,2]
[423467218,1780145431000,-570.32,0.00012264,2]
[423467216,1780145431000,-574.86,0.00012259,2]
[423467211,1780145431000,-262.29,0.00012156,2]
[423467212,1780145431000,-153.46,0.0001222,2]
[423467215,1780145431000,-643.45,0.00012259,2]
[423467214,1780145431000,-184.9,0.00012259,2]
[423467210,1780145431000,-153.46,0.00012141,2]
[423467206,1780145431000,-17327.71813606,0.00012092,2]
[423467213,1780145431000,-481.12,0.00012249,2]
[423467208,1780145431000,-1680.0,0.00012135,2]
[423467205,1780145431000,-153.46,0.00012063,2]
[423467203,1780145431000,-153.46,0.00011985,2]
[423467201,1780145431000,-1433.97,0.0001197,2]
[423467200,1780145431000,-153.46,0.00011906,2]
[423467197,1780145431000,-209.12966642,0.00011849,2]
[423467196,1780145431000,-215.58360558,0.00011849,2]
[423467195,1780145431000,-160.0,0.00011846,2]
[423467194,1780145431000,-326399.8672,0.00011803,2]
[423467207,1780145431000,-420.0,0.00012123,2]
[423467261,1780145432000,-572.6,0.00013067,2]
[423467257,1780145432000,-400.0,0.00012978,2]
[423467255,1780145432000,-451.74851387,0.00012971,2]
[423467254,1780145432000,-153.46,0.00012925,2]
[423467259,1780145432000,-1337.71,0.00013064,2]
[423467251,1780145432000,-6404.91,0.00012893,2]
[423467252,1780145432000,-5400.0,0.000129,4]
[423467263,1780145432000,-574.86,0.0001307,2]
[423467253,1780145432000,-900.0,0.000129,4]
[423467250,1780145432000,-199.47279156,0.00012888,2]
[423467262,1780145432000,-572.6,0.00013069,2]
[423467256,1780145432000,-250.0,0.00012978,2]
[423467260,1780145432000,-394.98,0.00013067,2]
[423467274,1780145432000,-574.86,0.00013078,2]
[423467264,1780145432000,-574.11,0.0001307,2]
[423467266,1780145432000,-394.71,0.0001307,2]
[423467267,1780145432000,-395.79,0.0001307,2]
[423467268,1780145432000,-395.79,0.0001307,2]
[423467272,1780145432000,-572.6,0.00013078,2]
[423467269,1780145432000,-394.97,0.00013071,2]
[423467270,1780145432000,-643.45,0.00013073,2]
[423467265,1780145432000,-184.9,0.0001307,2]
[423467273,1780145432000,-643.45,0.00013078,2]
[423467249,1780145432000,-156.587,0.00012888,2]
[423467271,1780145432000,-643.45,0.00013078,2]
[423467275,1780145432000,-572.6,0.00013078,2]
[423467258,1780145432000,-153.46,0.00013003,2]
[423467247,1780145432000,-5000.0,0.00012878,2]
[423467238,1780145432000,-5535.49492527,0.00012794,2]
[423467243,1780145432000,-3000.0,0.00012808,2]
[423467219,1780145432000,-481.78,0.00012272,2]
[423467223,1780145432000,-153.46,0.00012298,2]
[423467221,1780145432000,-184.9,0.00012279,2]
[423467226,1780145432000,-500.0,0.00012376,2]
[423467225,1780145432000,-153.46,0.00012376,2]
[423467222,1780145432000,-478.87,0.00012287,2]
[423467220,1780145432000,-637.31,0.00012279,2]
[423467224,1780145432000,-532.53,0.00012329,2]
[423467227,1780145432000,-4568.7706651,0.00012443,2]
[423467228,1780145432000,-4735.0307065,0.00012443,2]
[423467232,1780145432000,-153.46,0.00012611,2]
[423467234,1780145432000,-153.46,0.0001269,2]
[423467229,1780145432000,-8023.91676446,0.00012443,2]
[423467231,1780145432000,-153.46,0.00012533,2]
[423467233,1780145432000,-2000.0,0.00012622,2]
[423467230,1780145432000,-153.46,0.00012455,2]
[423467237,1780145432000,-153.46,0.00012768,2]
[423467236,1780145432000,-300.0,0.000127,4]
[423467235,1780145432000,-1800.0,0.000127,4]
[423467276,1780145432000,-574.86,0.00013078,2]
[423467239,1780145432000,-11792.22321079,0.00012794,2]
[423467241,1780145432000,-3600.0,0.000128,4]
[423467244,1780145432000,-153.46,0.00012846,2]
[423467242,1780145432000,-600.0,0.000128,4]
[423467246,1780145432000,-4726.56318739,0.00012878,2]
[423467240,1780145432000,-458.14,0.00012797,2]
[423467245,1780145432000,-275.63,0.00012877,2]
[423467248,1780145432000,-151.0,0.00012888,2]
[423467278,1780145432000,-395.81,0.00013078,2]
[423467277,1780145432000,-574.86,0.00013078,2]
[423467281,1780145432000,-184.9,0.00013081,2]
[423467313,1780145432000,-386.28,0.000131,2]
[423467314,1780145432000,-224.55,0.000131,2]
[423467316,1780145432000,-574.86,0.00013101,2]
[423467324,1780145432000,-395.79,0.00013108,2]
[423467323,1780145432000,-150.34873257,0.00013102,2]
[423467319,1780145432000,-395.79,0.00013101,2]
[423467317,1780145432000,-395.79,0.00013101,2]
[423467321,1780145432000,-572.6,0.00013101,2]
[423467322,1780145432000,-184.9,0.00013101,2]
[423467315,1780145432000,-393.4,0.000131,2]
[423467279,1780145432000,-184.9,0.00013078,2]
[423467320,1780145432000,-184.9,0.00013101,2]
[423467325,1780145432000,-184.9,0.00013108,2]
[423467328,1780145432000,-574.86,0.00013108,2]
[423467326,1780145432000,-574.86,0.00013108,2]
[423467329,1780145432000,-184.9,0.00013108,2]
[423467331,1780145432000,-572.6,0.00013108,2]
[423467330,1780145432000,-574.86,0.00013108,2]
[423467332,1780145432000,-395.79,0.00013108,2]
[423467334,1780145432000,-572.6,0.00013108,2]
[423467327,1780145432000,-395.79,0.00013108,2]
[423467333,1780145432000,-631.83,0.00013108,2]
[423467336,1780145432000,-572.6,0.00013127,2]
[423467335,1780145432000,-2000.0,0.00013125,2]
[423467337,1780145432000,-395.79,0.00013127,2]
[423467338,1780145432000,-184.9,0.00013127,2]
[423467339,1780145432000,-500.0,0.00013142,2]
[423467311,1780145432000,-386.19,0.000131,2]
[423467307,1780145432000,-182.61,0.00013094,2]
[423467318,1780145432000,-646.02,0.00013101,2]
[423467312,1780145432000,-184.97,0.000131,2]
[423467306,1780145432000,-181.43,0.00013094,2]
[423467282,1780145432000,-374.28,0.00013081,2]
[423467284,1780145432000,-570.8,0.00013081,2]
[423467286,1780145432000,-572.6,0.00013081,2]
[423467283,1780145432000,-184.9,0.00013081,2]
[423467285,1780145432000,-184.9,0.00013081,2]
[423467287,1780145432000,-395.79,0.00013081,2]
[423467288,1780145432000,-395.79,0.00013081,2]
[423467289,1780145432000,-153.46,0.00013081,2]
[423467291,1780145432000,-500.0,0.00013082,2]
[423467290,1780145432000,-800.0,0.00013082,2]
[423467292,1780145432000,-395.79,0.00013086,2]
[423467293,1780145432000,-585.23,0.00013086,2]
[423467295,1780145432000,-572.6,0.00013086,2]
[423467280,1780145432000,-1584.63,0.00013079,2]
[423467296,1780145432000,-572.61,0.00013086,2]
[423467298,1780145432000,-1584.63,0.00013091,2]
[423467309,1780145432000,-184.9,0.00013094,2]
[423467308,1780145432000,-481.47,0.00013094,2]
[423467305,1780145432000,-626.88,0.00013094,2]
[423467304,1780145432000,-395.79,0.00013094,2]
[423467303,1780145432000,-572.61,0.00013094,2]
[423467310,1780145432000,-475.96,0.000131,2]
[423467301,1780145432000,-184.9,0.00013094,2]
[423467300,1780145432000,-572.6,0.00013091,2]
[423467294,1780145432000,-395.79,0.00013086,2]
[423467299,1780145432000,-568.1,0.00013091,2]
[423467297,1780145432000,-481.78,0.00013091,2]
[423467302,1780145432000,-643.45,0.00013094,2]
[423467374,1780145433000,-262.29,0.00013507,2]
[423467378,1780145433000,-150.0,0.00013545,2]
[423467377,1780145433000,-150.0,0.00013538,2]
[423467376,1780145433000,-150.0,0.00013526,2]
[423467369,1780145433000,-150.0,0.00013488,2]
[423467373,1780145433000,-17327.71813606,0.00013496,2]
[423467371,1780145433000,-150.0,0.00013488,2]
[423467367,1780145433000,-150.0,0.00013488,2]
[423467370,1780145433000,-150.0,0.00013488,2]
[423467379,1780145433000,-150.0,0.0001355,2]
[423467375,1780145433000,-150.0,0.00013507,2]
[423467384,1780145433000,-150.0,0.00013588,2]
[423467386,1780145433000,-150.0,0.00013603,2]
[423467382,1780145433000,-150.0,0.00013571,2]
[423467381,1780145433000,-150.0,0.00013567,2]
[423467383,1780145433000,-150.0,0.00013584,2]
[423467385,1780145433000,-573.0,0.00013599,2]
[423467387,1780145433000,-352.91,0.00013606,2]
[423467391,1780145433000,-4800.731,0.00013608,2]
[423467389,1780145433000,-1252.65,0.00013608,2]
[423467394,1780145433000,-451.74851387,0.00013614,2]
[423467393,1780145433000,-150.0,0.00013613,2]
[423467390,1780145433000,-894.49,0.00013608,2]
[423467396,1780145433000,-150.0,0.00013624,2]
[423467364,1780145433000,-150.0,0.00013488,2]
[423467380,1780145433000,-150.0,0.00013565,2]
[423467365,1780145433000,-150.0,0.00013488,2]
[423467395,1780145433000,-150.0,0.00013622,2]
[423467363,1780145433000,-350.0,0.0001335,2]
[423467340,1780145433000,-500.0,0.00013142,2]
[423467345,1780145433000,-150.0,0.00013142,2]
[423467343,1780145433000,-150.0,0.00013142,2]
[423467344,1780145433000,-150.0,0.00013142,2]
[423467347,1780145433000,-150.0,0.00013142,2]
[423467341,1780145433000,-500.0,0.00013142,2]
[423467349,1780145433000,-12608.45138291,0.00013145,2]
[423467346,1780145433000,-150.0,0.00013142,2]
[423467348,1780145433000,-250.0,0.00013142,2]
[423467342,1780145433000,-307.75094275,0.00013142,2]
[423467351,1780145433000,-350.0,0.00013145,2]
[423467361,1780145433000,-587.0,0.00013321,2]
[423467352,1780145433000,-153.46,0.0001316,2]
[423467358,1780145433000,-150.0,0.00013181,2]
[423467350,1780145433000,-4719.26675315,0.00013145,2]
[423467356,1780145433000,-150.0,0.00013181,2]
[423467353,1780145433000,-150.0,0.00013181,2]
[423467357,1780145433000,-150.0,0.00013181,2]
[423467354,1780145433000,-150.0,0.00013181,2]
[423467355,1780145433000,-150.0,0.00013181,2]
[423467359,1780145433000,-150.0,0.00013181,2]
[423467360,1780145433000,-451.74851387,0.00013293,2]
[423467362,1780145433000,-2351.0,0.00013349,2]
[423467372,1780145433000,-150.0,0.00013488,2]
[423467368,1780145433000,-150.0,0.00013488,2]
[423467366,1780145433000,-150.0,0.00013488,2]
[423467392,1780145433000,-363.96,0.00013608,2]
[423467388,1780145433000,-554.96,0.00013608,2]
[423467406,1780145433000,-150.0,0.00013687,2]
[423467428,1780145433000,-500.0,0.00013698,2]
[423467430,1780145433000,-500.0,0.00013698,2]
[423467432,1780145433000,-500.0,0.00013698,2]
[423467440,1780145433000,-200.0,0.00013698,2]
[423467429,1780145433000,-500.0,0.00013698,2]
[423467431,1780145433000,-500.0,0.00013698,2]
[423467438,1780145433000,-500.0,0.00013698,2]
[423467434,1780145433000,-500.0,0.00013698,2]
[423467433,1780145433000,-500.0,0.00013698,2]
[423467437,1780145433000,-500.0,0.00013698,2]
[423467436,1780145433000,-500.0,0.00013698,2]
[423467435,1780145433000,-500.0,0.00013698,2]
[423467442,1780145433000,-500.0,0.00013698,2]
[423467452,1780145433000,-500.0,0.00013698,2]
[423467441,1780145433000,-5554.00862,0.00013698,2]
[423467445,1780145433000,-500.0,0.00013698,2]
[423467443,1780145433000,-500.0,0.00013698,2]
[423467444,1780145433000,-500.0,0.00013698,2]
[423467451,1780145433000,-500.0,0.00013698,2]
[423467449,1780145433000,-505.24076892,0.00013698,2]
[423467448,1780145433000,-500.0,0.00013698,2]
[423467450,1780145433000,-500.0,0.00013698,2]
[423467447,1780145433000,-500.0,0.00013698,2]
[423467446,1780145433000,-500.0,0.00013698,2]
[423467397,1780145433000,-1232.0,0.00013634,5]
[423467427,1780145433000,-500.0,0.00013698,2]
[423467421,1780145433000,-787.88366666,0.00013698,2]
[423467439,1780145433000,-581.97252477,0.00013698,2]
[423467426,1780145433000,-500.0,0.00013698,2]
[423467405,1780145433000,-150.0,0.0001368,2]
[423467424,1780145433000,-500.0,0.00013698,2]
[423467400,1780145433000,-150.0,0.00013641,2]
[423467410,1780145433000,-500.0,0.00013698,2]
[423467409,1780145433000,-200.0,0.00013698,2]
[423467399,1780145433000,-150.0,0.00013638,2]
[423467453,1780145433000,-500.0,0.00013698,2]
[423467408,1780145433000,-2000.0,0.00013698,2]
[423467403,1780145433000,-150.0,0.00013661,2]
[423467404,1780145433000,-150.0,0.00013675,2]
[423467401,1780145433000,-150.0,0.00013645,2]
[423467407,1780145433000,-1005.0783081,0.00013698,2]
[423467402,1780145433000,-150.0,0.00013654,2]
[423467398,1780145433000,-994.0,0.00013634,5]
[423467412,1780145433000,-500.0,0.00013698,2]
[423467416,1780145433000,-357.2090424,0.00013698,2]
[423467422,1780145433000,-26304.13809968,0.00013698,2]
[423467425,1780145433000,-500.0,0.00013698,2]
[423467420,1780145433000,-26.7287,0.00013698,2]
[423467419,1780145433000,-481.96,0.00012279,2]
[423467417,1780145433000,-15173.10608521,0.00013698,2]
[423467423,1780145433000,-500.0,0.00013698,2]
[423467415,1780145433000,-500.0,0.00013698,2]
[423467413,1780145433000,-500.0,0.00013698,2]
[423467411,1780145433000,-500.0,0.00013698,2]
[423467418,1780145433000,-2507.99198305,0.00013698,2]
[423467414,1780145433000,-500.0,0.00013698,2]
[423467467,1780145434000,-627.56,0.00013698,2]
[423467466,1780145434000,-627.56,0.00013698,2]
[423467472,1780145434000,-500.0,0.00013698,2]
[423467487,1780145434000,-559.13,0.00013698,2]
[423467473,1780145434000,-500.0,0.00013698,2]
[423467470,1780145434000,-500.0,0.00013698,2]
[423467474,1780145434000,-500.0,0.00013698,2]
[423467475,1780145434000,-500.0,0.00013698,2]
[423467479,1780145434000,-500.0,0.00013698,2]
[423467468,1780145434000,-500.0,0.00013698,2]
[423467471,1780145434000,-500.0,0.00013698,2]
[423467469,1780145434000,-500.0,0.00013698,2]
[423467461,1780145434000,-627.56,0.00013698,2]
[423467462,1780145434000,-627.56,0.00013698,2]
[423467463,1780145434000,-627.56,0.00013698,2]
[423467459,1780145434000,-627.56,0.00013698,2]
[423467457,1780145434000,-500.0,0.00013698,2]
[423467460,1780145434000,-627.56,0.00013698,2]
[423467458,1780145434000,-500.0,0.00013698,2]
[423467456,1780145434000,-500.0,0.00013698,2]
[423467455,1780145434000,-500.0,0.00013698,2]
[423467464,1780145434000,-627.56,0.00013698,2]
[423467454,1780145434000,-500.0,0.00013698,2]
[423467486,1780145434000,-559.13,0.00013698,2]
[423467465,1780145434000,-627.56,0.00013698,2]
[423467478,1780145434000,-500.0,0.00013698,2]
[423467476,1780145434000,-500.0,0.00013698,2]
[423467480,1780145434000,-500.0,0.00013698,2]
[423467505,1780145434000,-500.0,0.00013698,2]
[423467508,1780145434000,-467.81004967,0.00013698,2]
[423467507,1780145434000,-500.0,0.00013698,2]
[423467485,1780145434000,-500.0,0.00013698,2]
[423467503,1780145434000,-500.0,0.00013698,2]
[423467502,1780145434000,-500.0,0.00013698,2]
[423467496,1780145434000,-500.0,0.00013698,2]
[423467498,1780145434000,-500.0,0.00013698,2]
[423467497,1780145434000,-377.06035753,0.00013698,2]
[423467499,1780145434000,-500.0,0.00013698,2]
[423467495,1780145434000,-559.13,0.00013698,2]
[423467494,1780145434000,-559.13,0.00013698,2]
[423467493,1780145434000,-559.13,0.00013698,2]
[423467506,1780145434000,-500.0,0.00013698,2]
[423467491,1780145434000,-559.13,0.00013698,2]
[423467501,1780145434000,-500.0,0.00013698,2]
[423467481,1780145434000,-500.0,0.00013698,2]
[423467484,1780145434000,-500.0,0.00013698,2]
[423467504,1780145434000,-500.0,0.00013698,2]
[423467477,1780145434000,-500.0,0.00013698,2]
[423467488,1780145434000,-559.13,0.00013698,2]
[423467483,1780145434000,-500.0,0.00013698,2]
[423467490,1780145434000,-549.93789521,0.00013698,2]
[423467489,1780145434000,-559.13,0.00013698,2]
[423467500,1780145434000,-500.0,0.00013698,2]
[423467492,1780145434000,-559.13,0.00013698,2]
[423467482,1780145434000,-500.0,0.00013698,2]
[423467523,1780145438000,-500.0,0.00013698,2]
[423467527,1780145438000,-500.0,0.00013698,2]
[423467528,1780145438000,-500.0,0.00013698,2]
[423467524,1780145438000,-500.0,0.00013698,2]
[423467522,1780145438000,-500.0,0.00013698,2]
[423467531,1780145438000,-327.92067223,0.00013698,2]
[423467525,1780145438000,-500.0,0.00013698,2]
[423467532,1780145438000,-2000.0,0.00013698,2]
[423467521,1780145438000,-500.0,0.00013698,2]
[423467519,1780145438000,-500.0,0.00013698,2]
[423467518,1780145438000,-500.0,0.00013698,2]
[423467515,1780145438000,-500.0,0.00013698,2]
[423467512,1780145438000,-32.18995033,0.00013698,2]
[423467516,1780145438000,-500.0,0.00013698,2]
[423467517,1780145438000,-500.0,0.00013698,2]
[423467514,1780145438000,-500.0,0.00013698,2]
[423467513,1780145438000,-500.0,0.00013698,2]
[423467511,1780145438000,-391.03,0.00012259,2]
[423467520,1780145438000,-200.0,0.00013698,2]
[423467530,1780145438000,-500.0,0.00013698,2]
[423467533,1780145438000,-533.22,0.00013698,2]
[423467529,1780145438000,-500.0,0.00013698,2]
[423467526,1780145438000,-500.0,0.00013698,2]
[423467552,1780145438000,-222.4969431,0.00013698,2]
[423467551,1780145438000,-500.0,0.00013698,2]
[423467550,1780145438000,-500.0,0.00013698,2]
[423467547,1780145438000,-224.4244593,0.00013698,2]
[423467549,1780145438000,-500.0,0.00013698,2]
[423467544,1780145438000,-500.0,0.00013698,2]
[423467540,1780145438000,-533.22,0.00013698,2]
[423467541,1780145438000,-533.22,0.00013698,2]
[423467548,1780145438000,-275.5755407,0.00013698,2]
[423467543,1780145438000,-500.0,0.00013698,2]
[423467546,1780145438000,-500.0,0.00013698,2]
[423467542,1780145438000,-500.0,0.00013698,2]
[423467537,1780145438000,-533.22,0.00013698,2]
[423467539,1780145438000,-533.22,0.00013698,2]
[423467545,1780145438000,-500.0,0.00013698,2]
[423467536,1780145438000,-533.22,0.00013698,2]
[423467534,1780145438000,-533.22,0.00013698,2]
[423467538,1780145438000,-533.22,0.00013698,2]
[423467535,1780145438000,-533.22,0.00013698,2]
[423467565,1780145440000,-500.0,0.00013698,2]
[423467568,1780145440000,-500.0,0.00013698,2]
[423467578,1780145440000,-500.0,0.00013698,2]
[423467579,1780145440000,-272.02,0.00013698,2]
[423467571,1780145440000,-473.48,0.00013698,2]
[423467567,1780145440000,-500.0,0.00013698,2]
[423467570,1780145440000,-500.0,0.00013698,2]
[423467558,1780145440000,-500.0,0.00013698,2]
[423467569,1780145440000,-500.0,0.00013698,2]
[423467556,1780145440000,-500.0,0.00013698,2]
[423467553,1780145440000,-277.5030569,0.00013698,2]
[423467561,1780145440000,-500.0,0.00013698,2]
[423467557,1780145440000,-500.0,0.00013698,2]
[423467566,1780145440000,-500.0,0.00013698,2]
[423467559,1780145440000,-500.0,0.00013698,2]
[423467562,1780145440000,-500.0,0.00013698,2]
[423467563,1780145440000,-500.0,0.00013698,2]
[423467564,1780145440000,-500.0,0.00013698,2]
[423467555,1780145440000,-452.02902026,0.00013698,2]
[423467554,1780145440000,-47.97097974,0.00013698,2]
[423467577,1780145440000,-500.0,0.00013698,2]
[423467560,1780145440000,-500.0,0.00013698,2]
[423467572,1780145440000,-500.0,0.00013698,2]
[423467598,1780145440000,-2382.70471567,0.00013698,2]
[423467573,1780145440000,-500.0,0.00013698,2]
[423467574,1780145440000,-500.0,0.00013698,2]
[423467600,1780145440000,-688.8580236,0.00013698,2]
[423467599,1780145440000,-1147.75004749,0.00013698,2]
[423467594,1780145440000,-2963.9736631,0.00013698,2]
[423467597,1780145440000,-5525.79,0.00013698,2]
[423467595,1780145440000,-5525.79,0.00013698,2]
[423467593,1780145440000,-2561.8163369,0.00013698,2]
[423467592,1780145440000,-5525.79,0.00013698,2]
[423467581,1780145440000,-500.0,0.00013698,2]
[423467583,1780145440000,-500.0,0.00013698,2]
[423467588,1780145440000,-500.0,0.00013698,2]
[423467596,1780145440000,-5525.79,0.00013698,2]
[423467589,1780145440000,-5525.79,0.00013698,2]
[423467586,1780145440000,-500.0,0.00013698,2]
[423467582,1780145440000,-500.0,0.00013698,2]
[423467587,1780145440000,-500.0,0.00013698,2]
[423467591,1780145440000,-5525.79,0.00013698,2]
[423467576,1780145440000,-500.0,0.00013698,2]
[423467590,1780145440000,-5525.79,0.00013698,2]
[423467584,1780145440000,-500.0,0.00013698,2]
[423467580,1780145440000,-500.0,0.00013698,2]
[423467575,1780145440000,-500.0,0.00013698,2]
[423467585,1780145440000,-500.0,0.00013698,2]
[423467616,1780145442000,-883.57131252,0.00013698,2]
[423467615,1780145442000,-270.6809728,0.00013698,2]
[423467620,1780145442000,-500.0,0.00013698,2]
[423467618,1780145442000,-500.0,0.00013698,2]
[423467619,1780145442000,-500.0,0.00013698,2]
[423467617,1780145442000,-152.22492792,0.00013698,2]
[423467627,1780145443000,-500.0,0.00013698,2]
[423467622,1780145443000,-380.90447041,0.00013698,2]
[423467621,1780145443000,-500.0,0.00013698,2]
[423467625,1780145443000,-500.0,0.00013698,2]
[423467624,1780145443000,-500.0,0.00013698,2]
[423467623,1780145443000,-500.0,0.00013698,2]
[423467626,1780145443000,-500.0,0.00013698,2]
[423467634,1780145443000,-500.0,0.00013698,2]
[423467632,1780145443000,-500.0,0.00013698,2]
[423467631,1780145443000,-500.0,0.00013698,2]
[423467633,1780145443000,-500.0,0.00013698,2]
[423467628,1780145443000,-500.0,0.00013698,2]
[423467635,1780145443000,-500.0,0.00013698,2]
[423467629,1780145443000,-500.0,0.00013698,2]
[423467630,1780145443000,-500.0,0.00013698,2]
[423467636,1780145443000,-1341.36864371,0.00013698,2]
[423467645,1780145445000,-500.0,0.00013698,2]
[423467646,1780145445000,-500.0,0.00013698,2]
[423467644,1780145445000,-319.75470404,0.00013698,2]
[423467641,1780145445000,-200.0,0.00013698,2]
[423467643,1780145445000,-180.24529596,0.00013698,2]
[423467642,1780145445000,-500.0,0.00013698,2]
[423467640,1780145445000,-12.42230891,0.00013698,2]
[423467649,1780145446000,-500.0,0.00013698,2]
[423467652,1780145446000,-500.0,0.00013698,2]
[423467647,1780145446000,-500.0,0.00013698,2]
[423467648,1780145446000,-500.0,0.00013698,2]
[423467653,1780145446000,-500.0,0.00013698,2]
[423467650,1780145446000,-500.0,0.00013698,2]
[423467654,1780145446000,-225.53257881,0.00013698,2]
[423467655,1780145446000,-259.42692058,0.00013698,2]
[423467651,1780145446000,-500.0,0.00013698,2]
[423467667,1780146096000,184.54,0.00028082,120]
[423467672,1780146541000,1000.0,0.00028081,120]
[423467684,1780146631000,-500.0,0.00011951,2]
[423467683,1780146631000,-300.0,0.0001195,2]
[423467679,1780146631000,-268.13,0.00011869,2]
[423467676,1780146631000,-170.93,0.0001154,2]
[423467678,1780146631000,-1290.2133,0.00011851,2]
[423467681,1780146631000,-150.0,0.0001195,2]
[423467674,1780146631000,-400.946554,0.00010811,2]
[423467675,1780146631000,-215.58360558,0.00010923,2]
[423467682,1780146631000,-1200.0,0.0001195,2]
[423467677,1780146631000,-170.93,0.00011843,2]
[423467692,1780146631000,-500.0,0.00011951,2]
[423467686,1780146631000,-500.0,0.00011951,2]
[423467680,1780146631000,-172.25,0.0001191,2]
[423467691,1780146631000,-500.0,0.00011951,2]
[423467693,1780146631000,-500.0,0.00011951,2]
[423467688,1780146631000,-500.0,0.00011951,2]
[423467695,1780146631000,-500.0,0.00011951,2]
[423467690,1780146631000,-500.0,0.00011951,2]
[423467689,1780146631000,-500.0,0.00011951,2]
[423467687,1780146631000,-500.0,0.00011951,2]
[423467685,1780146631000,-500.0,0.00011951,2]
[423467694,1780146631000,-500.0,0.00011951,2]
[423467748,1780146632000,-500.0,0.00011951,2]
[423467726,1780146632000,-500.0,0.00011951,2]
[423467730,1780146632000,-500.0,0.00011951,2]
[423467741,1780146632000,-500.0,0.00011951,2]
[423467739,1780146632000,-500.0,0.00011951,2]
[423467743,1780146632000,-500.0,0.00011951,2]
[423467742,1780146632000,-500.0,0.00011951,2]
[423467746,1780146632000,-500.0,0.00011951,2]
[423467744,1780146632000,-500.0,0.00011951,2]
[423467751,1780146632000,-500.0,0.00011951,2]
[423467750,1780146632000,-500.0,0.00011951,2]
[423467745,1780146632000,-500.0,0.00011951,2]
[423467749,1780146632000,-500.0,0.00011951,2]
[423467724,1780146632000,-500.0,0.00011951,2]
[423467753,1780146632000,-373.09899609,0.00011951,2]
[423467752,1780146632000,-500.0,0.00011951,2]
[423467754,1780146632000,-500.0,0.00011951,2]
[423467755,1780146632000,-500.0,0.00011951,2]
[423467758,1780146632000,-500.0,0.00011951,2]
[423467763,1780146632000,-152.0,0.00012146,2]
[423467747,1780146632000,-500.0,0.00011951,2]
[423467732,1780146632000,-500.0,0.00011951,2]
[423467734,1780146632000,-500.0,0.00011951,2]